[Event "Goteborg Open 2024"]
[Site "Goteborgs Schackcentrum, Vegatan 20, Gothenburg, Sweden"]
[Date "2024.08.04"]
[Round "7.4"]
[White "Ottgard, Andreas"]
[Black "Utriainen, Tapani"]
[Result "1-0"]
[TimeControl "15 minutes + 5 seconds per move from move one (Round 1 - 4) / 90 minutes + 30 seconds per move from move one (Round 5 - 8)"]
[WhiteFideId "1730592"]
[BlackFideId "16300696"]
[WhiteElo "1900"]
[BlackElo "1914"]

1. c4 {[%clk 01:30:56]} {[%emt 00:00:02]} f5 {[%clk 01:30:57]} {[%emt
00:00:04]} 2. g3 {[%clk 01:31:05]} {[%emt 00:00:22]} Nf6 {[%clk 01:31:22]}
{[%emt 00:00:04]} 3. Bg2 {[%clk 01:31:30]} {[%emt 00:00:05]} e5 {[%clk
01:31:27]} {[%emt 00:00:25]} 4. Nc3 {[%clk 01:31:21]} {[%emt 00:00:39]} Bc5
{[%clk 01:31:29]} {[%emt 00:00:28]} 5. d3 {[%clk 01:20:23]} {[%emt 00:11:28]}
O-O {[%clk 01:31:02]} {[%emt 00:00:57]} 6. Nf3 {[%clk 01:19:15]} {[%emt
00:01:38]} d6 {[%clk 01:30:57]} {[%emt 00:00:35]} 7. a3 {[%clk 01:18:57]}
{[%emt 00:00:48]} a5 {[%clk 01:26:48]} {[%emt 00:04:39]} 8. O-O {[%clk
01:18:28]} {[%emt 00:00:58]} c6 {[%clk 01:19:13]} {[%emt 00:08:06]} 9. d4
{[%clk 01:03:15]} {[%emt 00:15:44]} exd4 {[%clk 01:08:24]} {[%emt 00:11:18]} 10.
Nxd4 {[%clk 01:03:06]} {[%emt 00:00:40]} Qe7 {[%clk 01:06:30]} {[%emt
00:02:24]} 11. Qd3 {[%clk 00:55:59]} {[%emt 00:07:36]} Ng4 {[%clk 00:54:59]}
{[%emt 00:12:00]} 12. e3 {[%clk 00:53:20]} {[%emt 00:03:10]} Ne5 {[%clk
00:49:06]} {[%emt 00:06:23]} 13. Qe2 {[%clk 00:52:59]} {[%emt 00:00:51]} Nbd7
{[%clk 00:49:22]} {[%emt 00:00:15]} 14. b3 {[%clk 00:46:28]} {[%emt 00:07:00]}
Nf6 {[%clk 00:45:06]} {[%emt 00:04:46]} 15. Bb2 {[%clk 00:46:05]} {[%emt
00:00:53]} Qf7 {[%clk 00:34:35]} {[%emt 00:11:01]} 16. Rfd1 {[%clk 00:41:17]}
{[%emt 00:05:17]} Be6 {[%clk 00:22:41]} {[%emt 00:12:24]} 17. Nxe6 {[%clk
00:36:32]} {[%emt 00:05:16]} Qxe6 {[%clk 00:23:03]} {[%emt 00:00:09]} 18. Rd2
{[%clk 00:35:22]} {[%emt 00:01:40]} Rae8 {[%clk 00:16:42]} {[%emt 00:06:50]} 19.
Rad1 {[%clk 00:31:32]} {[%emt 00:04:19]} Nfg4 {[%clk 00:07:50]} {[%emt
00:09:23]} 20. h3 {[%clk 00:06:24]} {[%emt 00:25:37]} Nxf2 {[%clk 00:07:07]}
{[%emt 00:01:14]} 21. Kxf2 {[%clk 00:06:37]} {[%emt 00:00:16]} Ng4+ {[%clk
00:03:20]} {[%emt 00:04:18]} 22. hxg4 {[%clk 00:06:36]} {[%emt 00:00:31]} Bxe3+
{[%clk 00:03:43]} {[%emt 00:00:07]} 23. Ke1 {[%clk 00:06:20]} {[%emt 00:00:46]}
fxg4 {[%clk 00:03:24]} {[%emt 00:00:49]} 24. Ne4 {[%clk 00:04:43]} {[%emt
00:02:07]} Bxd2+ {[%clk 00:01:16]} {[%emt 00:02:38]} 25. Rxd2 {[%clk 00:05:03]}
{[%emt 00:00:09]} d5 {[%clk 00:01:40]} {[%emt 00:00:07]} 26. cxd5 {[%clk
00:05:12]} {[%emt 00:00:21]} cxd5 {[%clk 00:02:08]} {[%emt 00:00:02]} 27. Nf6+
{[%clk 00:03:10]} {[%emt 00:02:32]} Qxf6 {[%clk 00:02:04]} {[%emt 00:00:34]} 28.
Bxf6 {[%clk 00:03:28]} {[%emt 00:00:11]} Rxe2+ {[%clk 00:02:30]} {[%emt
00:00:04]} 29. Rxe2 {[%clk 00:03:53]} {[%emt 00:00:06]} Rxf6 {[%clk 00:00:54]}
{[%emt 00:02:06]} 30. Bxd5+ {[%clk 00:04:17]} {[%emt 00:00:06]} Kf8 {[%clk
00:01:21]} {[%emt 00:00:04]} 31. Bxb7 {[%clk 00:04:23]} {[%emt 00:00:24]} Rb6
{[%clk 00:01:23]} {[%emt 00:00:27]} 32. Bd5 {[%clk 00:04:35]} {[%emt 00:00:18]}
g6 {[%clk 00:01:35]} {[%emt 00:00:18]} 33. Re4 {[%clk 00:04:12]} {[%emt
00:00:52]} Rd6 {[%clk 00:01:02]} {[%emt 00:01:03]} 34. Bc4 {[%clk 00:04:25]}
{[%emt 00:00:18]} Kg7 {[%clk 00:00:41]} {[%emt 00:00:51]} 35. Rxg4 {[%clk
00:04:39]} {[%emt 00:00:15]} h5 {[%clk 00:01:03]} {[%emt 00:00:09]} 36. Re4
{[%clk 00:04:50]} {[%emt 00:00:18]} Kf6 {[%clk 00:01:20]} {[%emt 00:00:13]} 37.
Ke2 {[%clk 00:04:42]} {[%emt 00:00:38]} g5 {[%clk 00:01:19]} {[%emt 00:00:32]}
38. Ke3 {[%clk 00:04:28]} {[%emt 00:00:43]} Rd1 {[%clk 00:01:36]} {[%emt
00:00:14]} 39. Re6+ {[%clk 00:03:33]} {[%emt 00:01:25]} Kf5 {[%clk 00:01:58]}
{[%emt 00:00:08]} 40. Ra6 {[%clk 00:03:17]} {[%emt 00:00:46]} Re1+ {[%clk
00:02:11]} {[%emt 00:00:17]} 41. Kf2 {[%clk 00:03:34]} {[%emt 00:00:12]} Re5
{[%clk 00:02:37]} {[%emt 00:00:05]} 42. Bd3+ {[%clk 00:02:50]} {[%emt
00:01:14]} Kg4 {[%clk 00:02:47]} {[%emt 00:00:21]} 43. Be2+ {[%clk 00:03:13]}
{[%emt 00:00:06]} Kh3 {[%clk 00:01:56]} {[%emt 00:01:22]} 44. Bxh5 {[%clk
00:02:11]} {[%emt 00:01:31]} Rf5+ {[%clk 00:02:24]} {[%emt 00:00:02]} 45. Bf3
{[%clk 00:02:22]} 1-0

[Event "Goteborg Open 2024"]
[Site "Goteborgs Schackcentrum, Vegatan 20, Gothenburg, Sweden"]
[Date "2024.08.04"]
[Round "7.5"]
[White "Borin, Jesper"]
[Black "Mohammed, Safian Haj"]
[Result "1-0"]
[TimeControl "15 minutes + 5 seconds per move from move one (Round 1 - 4) / 90 minutes + 30 seconds per move from move one (Round 5 - 8)"]
[WhiteFideId "1771337"]
[BlackFideId "1729276"]
[WhiteElo "1905"]
[BlackElo "1890"]

1. e4 {[%clk 01:30:11]} {[%emt 00:00:36]} c5 {[%clk 01:30:51]} {[%emt
00:00:21]} 2. Nf3 {[%clk 01:30:34]} {[%emt 00:00:07]} d6 {[%clk 01:30:43]}
{[%emt 00:00:39]} 3. Bb5+ {[%clk 01:30:58]} {[%emt 00:00:05]} Bd7 {[%clk
01:30:44]} {[%emt 00:00:29]} 4. Bxd7+ {[%clk 01:31:20]} {[%emt 00:00:08]} Qxd7
{[%clk 01:31:04]} {[%emt 00:00:09]} 5. c4 {[%clk 01:31:37]} {[%emt 00:00:14]}
Nc6 {[%clk 01:30:10]} {[%emt 00:01:25]} 6. d4 {[%clk 01:31:55]} {[%emt
00:00:11]} cxd4 {[%clk 01:30:02]} {[%emt 00:00:38]} 7. Nxd4 {[%clk 01:32:22]}
{[%emt 00:00:03]} Nf6 {[%clk 01:30:10]} {[%emt 00:00:22]} 8. Nc3 {[%clk
01:32:49]} {[%emt 00:00:04]} g6 {[%clk 01:29:32]} {[%emt 00:01:08]} 9. f3
{[%clk 01:32:45]} {[%emt 00:00:32]} Bg7 {[%clk 01:29:43]} {[%emt 00:00:20]} 10.
Be3 {[%clk 01:33:11]} {[%emt 00:00:03]} Ne5 {[%clk 01:20:11]} {[%emt 00:10:03]}
11. b3 {[%clk 01:32:12]} {[%emt 00:01:29]} Qd8 {[%clk 01:17:15]} {[%emt
00:03:26]} 12. Rc1 {[%clk 01:31:01]} {[%emt 00:01:41]} Qa5 {[%clk 01:13:13]}
{[%emt 00:04:33]} 13. O-O {[%clk 01:31:09]} {[%emt 00:00:21]} O-O {[%clk
01:10:39]} {[%emt 00:03:04]} 14. Qd2 {[%clk 01:30:27]} {[%emt 00:01:11]} Rfd8
{[%clk 01:07:59]} {[%emt 00:03:09]} 15. Rfd1 {[%clk 01:29:32]} {[%emt
00:01:27]} Rac8 {[%clk 01:00:58]} {[%emt 00:07:31]} 16. Kh1 {[%clk 01:27:42]}
{[%emt 00:02:20]} a6 {[%clk 00:49:21]} {[%emt 00:12:08]} 17. a4 {[%clk
01:24:27]} {[%emt 00:03:44]} Nfd7 {[%clk 00:41:38]} {[%emt 00:08:12]} 18. Rb1
{[%clk 01:21:55]} {[%emt 00:03:03]} Qc7 {[%clk 00:40:11]} {[%emt 00:01:57]} 19.
Nd5 {[%clk 01:22:16]} {[%emt 00:00:09]} Qb8 {[%clk 00:39:11]} {[%emt 00:01:31]}
20. Nxe7+ {[%clk 01:22:38]} {[%emt 00:00:07]} Kf8 {[%clk 00:39:35]} {[%emt
00:00:05]} 21. Nxc8 {[%clk 01:22:51]} {[%emt 00:00:17]} Qxc8 {[%clk 00:39:49]}
{[%emt 00:00:16]} 22. Ne2 {[%clk 01:20:43]} {[%emt 00:02:38]} Nf6 {[%clk
00:39:23]} {[%emt 00:00:56]} 23. Nf4 {[%clk 01:14:38]} {[%emt 00:06:49]} Qc6
{[%clk 00:39:02]} {[%emt 00:00:52]} 24. Nd5 {[%clk 01:14:45]} {[%emt 00:00:22]}
Nh5 {[%clk 00:37:20]} {[%emt 00:02:13]} 25. Bg5 {[%clk 01:13:31]} {[%emt
00:01:43]} f6 {[%clk 00:35:23]} {[%emt 00:02:28]} 26. Bh6 {[%clk 01:13:42]}
{[%emt 00:00:18]} Qd7 {[%clk 00:33:23]} {[%emt 00:02:31]} 27. Bxg7+ {[%clk
01:12:37]} {[%emt 00:01:34]} Kxg7 {[%clk 00:33:27]} {[%emt 00:00:27]} 28. Qd4
{[%clk 01:11:30]} {[%emt 00:01:36]} Nf4 {[%clk 00:33:07]} {[%emt 00:00:50]} 29.
Nxf4 {[%clk 01:11:54]} {[%emt 00:00:06]} 1-0

[Event "Goteborg Open 2024"]
[Site "Goteborgs Schackcentrum, Vegatan 20, Gothenburg, Sweden"]
[Date "2024.08.04"]
[Round "7.6"]
[White "Westlund, Tim"]
[Black "Degerfeldt, Sven"]
[Result "0-1"]
[TimeControl "15 minutes + 5 seconds per move from move one (Round 1 - 4) / 90 minutes + 30 seconds per move from move one (Round 5 - 8)"]
[WhiteFideId "1754718"]
[BlackFideId "1717430"]
[WhiteElo "1886"]
[BlackElo "1902"]

1. e4 {[%clk 01:30:57]} {[%emt 00:00:02]} c5 {[%clk 01:29:12]} {[%emt
00:01:49]} 2. Nf3 {[%clk 01:31:21]} {[%emt 00:00:06]} e6 {[%clk 01:29:36]}
{[%emt 00:00:06]} 3. d4 {[%clk 01:31:22]} {[%emt 00:00:28]} cxd4 {[%clk
01:29:58]} {[%emt 00:00:09]} 4. Nxd4 {[%clk 01:31:46]} {[%emt 00:00:06]} a6
{[%clk 01:28:30]} {[%emt 00:01:58]} 5. Nc3 {[%clk 01:31:02]} {[%emt 00:01:14]}
Nc6 {[%clk 01:28:33]} {[%emt 00:00:26]} 6. Be2 {[%clk 01:30:01]} {[%emt
00:01:31]} Qc7 {[%clk 01:28:09]} {[%emt 00:00:55]} 7. Be3 {[%clk 01:28:45]}
{[%emt 00:01:46]} Nf6 {[%clk 01:28:03]} {[%emt 00:00:35]} 8. O-O {[%clk
01:26:37]} {[%emt 00:02:38]} b5 {[%clk 01:26:52]} {[%emt 00:01:42]} 9. a3
{[%clk 01:23:06]} {[%emt 00:04:01]} Bb7 {[%clk 01:26:26]} {[%emt 00:00:56]} 10.
f4 {[%clk 01:21:01]} {[%emt 00:02:34]} d6 {[%clk 01:26:40]} {[%emt 00:00:17]}
11. Bf3 {[%clk 01:19:05]} {[%emt 00:02:25]} Be7 {[%clk 01:26:13]} {[%emt
00:00:57]} 12. Kh1 {[%clk 01:16:57]} {[%emt 00:02:39]} O-O {[%clk 01:22:56]}
{[%emt 00:03:46]} 13. g4 {[%clk 01:13:22]} {[%emt 00:04:06]} Nd7 {[%clk
01:14:25]} {[%emt 00:09:01]} 14. Qe2 {[%clk 01:12:31]} {[%emt 00:01:20]} Bf6
{[%clk 01:08:08]} {[%emt 00:06:47]} 15. Nxc6 {[%clk 01:11:11]} {[%emt
00:01:51]} Bxc6 {[%clk 01:08:18]} {[%emt 00:00:20]} 16. g5 {[%clk 01:11:15]}
{[%emt 00:00:26]} Bxc3 {[%clk 01:04:52]} {[%emt 00:03:56]} 17. bxc3 {[%clk
01:11:27]} {[%emt 00:00:18]} f5 {[%clk 01:01:05]} {[%emt 00:04:16]} 18. gxf6
{[%clk 01:04:06]} {[%emt 00:07:52]} Nxf6 {[%clk 01:01:04]} {[%emt 00:00:31]} 19.
Qg2 {[%clk 01:02:21]} {[%emt 00:02:14]} Rf7 {[%clk 00:59:57]} {[%emt 00:01:37]}
20. f5 {[%clk 00:55:36]} {[%emt 00:07:15]} e5 {[%clk 00:56:12]} {[%emt
00:04:16]} 21. Rae1 {[%clk 00:53:30]} {[%emt 00:02:36]} Kh8 {[%clk 00:56:19]}
{[%emt 00:00:23]} 22. Rg1 {[%clk 00:52:00]} {[%emt 00:02:00]} Rg8 {[%clk
00:56:39]} {[%emt 00:00:10]} 23. Bg5 {[%clk 00:49:06]} {[%emt 00:03:24]} Qb7
{[%clk 00:55:41]} {[%emt 00:01:28]} 24. Bxf6 {[%clk 00:41:49]} {[%emt
00:07:44]} Rxf6 {[%clk 00:56:03]} {[%emt 00:00:10]} 25. Re2 {[%clk 00:41:33]}
{[%emt 00:00:46]} Qf7 {[%clk 00:55:48]} {[%emt 00:00:45]} 26. Qg4 {[%clk
00:38:43]} {[%emt 00:03:20]} Bd7 {[%clk 00:46:22]} {[%emt 00:09:56]} 27. Reg2
{[%clk 00:36:06]} {[%emt 00:03:07]} d5 {[%clk 00:30:22]} {[%emt 00:16:30]} 28.
Qg5 {[%clk 00:32:28]} {[%emt 00:04:08]} dxe4 {[%clk 00:28:57]} {[%emt
00:01:55]} 29. Bh5 {[%clk 00:25:35]} {[%emt 00:07:22]} Qf8 {[%clk 00:28:05]}
{[%emt 00:01:24]} 30. Bg6 {[%clk 00:24:09]} {[%emt 00:01:55]} Bxf5 {[%clk
00:28:20]} {[%emt 00:00:16]} 31. Bxf5 {[%clk 00:24:10]} {[%emt 00:00:28]} Rxf5
{[%clk 00:28:41]} {[%emt 00:00:09]} 32. Qh4 {[%clk 00:23:52]} {[%emt 00:00:46]}
Rf4 {[%clk 00:28:40]} {[%emt 00:00:34]} 33. Qh5 {[%clk 00:22:11]} {[%emt
00:02:06]} Rf5 {[%clk 00:28:29]} {[%emt 00:00:45]} 34. Qh3 {[%clk 00:20:11]}
{[%emt 00:02:29]} g6 {[%clk 00:23:50]} {[%emt 00:05:09]} 35. Qg4 {[%clk
00:18:07]} {[%emt 00:02:32]} Rf4 {[%clk 00:23:55]} {[%emt 00:00:28]} 36. Qe6
{[%clk 00:16:54]} {[%emt 00:01:43]} Qf6 {[%clk 00:23:52]} {[%emt 00:00:34]} 37.
Qh3 {[%clk 00:14:24]} {[%emt 00:02:59]} Rf3 {[%clk 00:19:22]} {[%emt 00:05:01]}
38. Qh6 {[%clk 00:11:31]} {[%emt 00:03:22]} Rf1 {[%clk 00:19:28]} {[%emt
00:00:23]} 39. Qe3 {[%clk 00:07:32]} {[%emt 00:04:30]} Rxg1+ {[%clk 00:19:19]}
{[%emt 00:00:39]} 40. Kxg1 {[%clk 00:07:32]} {[%emt 00:00:27]} Qf4 {[%clk
00:18:31]} {[%emt 00:01:21]} 41. Re2 {[%clk 00:06:21]} {[%emt 00:01:41]} Rf8
{[%clk 00:17:28]} {[%emt 00:01:33]} 42. Qxf4 {[%clk 00:06:32]} {[%emt
00:00:20]} Rxf4 {[%clk 00:17:42]} {[%emt 00:00:15]} 43. Kg2 {[%clk 00:06:14]}
{[%emt 00:00:48]} Kg7 {[%clk 00:18:10]} {[%emt 00:00:02]} 44. Re3 {[%clk
00:03:44]} {[%emt 00:03:00]} Kf6 {[%clk 00:18:25]} {[%emt 00:00:15]} 45. c4
{[%clk 00:03:36]} {[%emt 00:00:39]} bxc4 {[%clk 00:18:28]} {[%emt 00:00:26]} 46.
Rc3 {[%clk 00:03:43]} {[%emt 00:00:23]} Kf5 {[%clk 00:15:59]} {[%emt 00:02:59]}
47. h3 {[%clk 00:02:06]} {[%emt 00:02:08]} Rf3 {[%clk 00:12:13]} {[%emt
00:04:14]} 48. Rxc4 {[%clk 00:02:33]} {[%emt 00:00:05]} Rxa3 {[%clk 00:12:30]}
{[%emt 00:00:13]} 49. Rc6 {[%clk 00:02:24]} {[%emt 00:00:38]} Kf4 {[%clk
00:11:31]} {[%emt 00:01:29]} 50. Kf2 {[%clk 00:02:18]} {[%emt 00:00:37]} Rxh3
{[%clk 00:10:45]} {[%emt 00:01:15]} 51. Rxa6 {[%clk 00:02:42]} {[%emt
00:00:07]} Rh2+ {[%clk 00:11:06]} {[%emt 00:00:09]} 52. Ke1 {[%clk 00:02:54]}
{[%emt 00:00:17]} Rxc2 {[%clk 00:11:23]} {[%emt 00:00:14]} 53. Ra3 {[%clk
00:02:51]} {[%emt 00:00:33]} e3 {[%clk 00:11:25]} {[%emt 00:00:27]} 54. Ra8
{[%clk 00:02:48]} {[%emt 00:00:32]} h5 {[%clk 00:11:05]} {[%emt 00:00:52]} 55.
Kf1 {[%clk 00:02:09]} {[%emt 00:01:07]} g5 {[%clk 00:11:23]} {[%emt 00:00:13]}
56. Rf8+ {[%clk 00:02:08]} {[%emt 00:00:30]} Kg3 {[%clk 00:11:02]} {[%emt
00:00:52]} 57. Re8 {[%clk 00:01:33]} {[%emt 00:01:05]} Rf2+ {[%clk 00:08:45]}
{[%emt 00:02:47]} 58. Ke1 {[%clk 00:01:47]} {[%emt 00:00:16]} Kf4 {[%clk
00:08:46]} {[%emt 00:00:29]} 59. Rf8+ {[%clk 00:01:44]} {[%emt 00:00:34]} Ke4
{[%clk 00:09:05]} {[%emt 00:00:10]} 60. Ra8 {[%clk 00:01:29]} {[%emt 00:00:45]}
g4 {[%clk 00:09:15]} {[%emt 00:00:21]} 61. Rh8 {[%clk 00:01:16]} {[%emt
00:00:43]} Rh2 {[%clk 00:09:21]} {[%emt 00:00:23]} 62. Rg8 {[%clk 00:01:29]}
{[%emt 00:00:14]} Kf3 {[%clk 00:07:17]} {[%emt 00:02:38]} 63. Rf8+ {[%clk
00:01:38]} {[%emt 00:00:21]} Kg3 {[%clk 00:07:20]} {[%emt 00:00:27]} 64. Rf5
{[%clk 00:01:40]} {[%emt 00:00:27]} e4 {[%clk 00:07:35]} {[%emt 00:00:16]} 65.
Ra5 {[%clk 00:01:27]} {[%emt 00:00:43]} h4 {[%clk 00:07:44]} {[%emt 00:00:21]}
66. Kf1 {[%clk 00:01:35]} {[%emt 00:00:20]} Rf2+ {[%clk 00:07:06]} {[%emt
00:01:10]} 67. Ke1 {[%clk 00:01:37]} {[%emt 00:00:27]} Rb2 {[%clk 00:07:33]}
{[%emt 00:00:03]} 68. Kf1 {[%clk 00:00:50]} {[%emt 00:01:18]} h3 {[%clk
00:07:50]} {[%emt 00:00:12]} 69. Ra3 {[%clk 00:01:07]} {[%emt 00:00:13]} Kf3
{[%clk 00:08:08]} {[%emt 00:00:13]} 70. Kg1 {[%clk 00:01:17]} {[%emt 00:00:17]}
g3 {[%clk 00:08:29]} {[%emt 00:00:11]} 71. Ra1 {[%clk 00:01:27]} {[%emt
00:00:21]} Rf2 {[%clk 00:08:23]} {[%emt 00:00:35]} 72. Ra3 {[%clk 00:00:43]}
{[%emt 00:01:15]} h2+ {[%clk 00:08:36]} {[%emt 00:00:17]} 0-1

[Event "Goteborg Open 2024"]
[Site "Goteborgs Schackcentrum, Vegatan 20, Gothenburg, Sweden"]
[Date "2024.08.04"]
[Round "7.7"]
[White "Harila, Per"]
[Black "Madevan Vaishnavi, Yaashvan"]
[Result "1-0"]
[TimeControl "15 minutes + 5 seconds per move from move one (Round 1 - 4) / 90 minutes + 30 seconds per move from move one (Round 5 - 8)"]
[WhiteFideId "1707248"]
[BlackFideId "1772180"]
[WhiteElo "1947"]
[BlackElo "1684"]

1. c4 {[%clk 01:30:48]} {[%emt 00:00:11]} e5 {[%clk 01:27:41]} {[%emt
00:03:20]} 2. g3 {[%clk 01:31:05]} {[%emt 00:00:13]} Nf6 {[%clk 01:27:56]}
{[%emt 00:00:15]} 3. Bg2 {[%clk 01:31:27]} {[%emt 00:00:08]} Nc6 {[%clk
01:26:03]} {[%emt 00:02:23]} 4. d3 {[%clk 01:31:50]} {[%emt 00:00:08]} Bc5
{[%clk 01:24:18]} {[%emt 00:02:14]} 5. e4 {[%clk 01:30:32]} {[%emt 00:01:48]}
d6 {[%clk 01:23:07]} {[%emt 00:01:42]} 6. Ne2 {[%clk 01:30:57]} {[%emt
00:00:04]} Ng4 {[%clk 01:12:10]} {[%emt 00:11:27]} 7. O-O {[%clk 01:31:10]}
{[%emt 00:00:17]} Qf6 {[%clk 01:12:30]} {[%emt 00:00:11]} 8. d4 {[%clk
01:20:53]} {[%emt 00:10:47]} Nxd4 {[%clk 01:10:39]} {[%emt 00:02:20]} 9. Nxd4
{[%clk 01:20:48]} {[%emt 00:00:34]} exd4 {[%clk 01:07:52]} {[%emt 00:03:18]} 10.
h3 {[%clk 01:20:24]} {[%emt 00:00:54]} Ne5 {[%clk 01:08:12]} {[%emt 00:00:10]}
11. f4 {[%clk 01:12:50]} {[%emt 00:08:04]} Nc6 {[%clk 00:56:31]} {[%emt
00:12:11]} 12. Kh2 {[%clk 01:12:39]} {[%emt 00:00:40]} O-O {[%clk 00:56:12]}
{[%emt 00:00:50]} 13. Nd2 {[%clk 01:12:52]} {[%emt 00:00:17]} Bd7 {[%clk
00:52:35]} {[%emt 00:04:07]} 14. a3 {[%clk 01:12:58]} {[%emt 00:00:24]} a5
{[%clk 00:52:34]} {[%emt 00:00:31]} 15. Nf3 {[%clk 01:10:42]} {[%emt 00:02:46]}
Be6 {[%clk 00:47:05]} {[%emt 00:05:58]} 16. Qd3 {[%clk 01:10:07]} {[%emt
00:01:05]} h6 {[%clk 00:42:49]} {[%emt 00:04:47]} 17. Bd2 {[%clk 01:10:21]}
{[%emt 00:00:16]} a4 {[%clk 00:41:00]} {[%emt 00:02:19]} 18. g4 {[%clk
01:09:07]} {[%emt 00:01:43]} Qe7 {[%clk 00:39:15]} {[%emt 00:02:16]} 19. g5
{[%clk 01:06:58]} {[%emt 00:02:40]} hxg5 {[%clk 00:38:44]} {[%emt 00:01:00]} 20.
Nxg5 {[%clk 01:06:49]} {[%emt 00:00:39]} f6 {[%clk 00:38:32]} {[%emt 00:00:43]}
21. Nxe6 {[%clk 01:06:40]} {[%emt 00:00:37]} Qxe6 {[%clk 00:38:54]} {[%emt
00:00:09]} 22. Bf3 {[%clk 01:06:49]} {[%emt 00:00:21]} Rae8 {[%emt 00:01:26]}
23. Rae1 {[%clk 01:06:57]} Kh8 {[%clk 00:35:59]} {[%emt 00:02:51]} 24. Rg1
{[%clk 01:01:05]} {[%emt 00:06:22]} Rg8 {[%clk 00:31:50]} {[%emt 00:04:39]} 25.
Bh5 {[%clk 00:59:23]} {[%emt 00:02:04]} g5 {[%clk 00:27:39]} {[%emt 00:04:48]}
26. Bxe8 {[%clk 00:59:28]} {[%emt 00:00:25]} Qxe8 {[%clk 00:27:32]} {[%emt
00:00:37]} 27. Rg4 {[%clk 00:57:14]} {[%emt 00:02:45]} Qe6 {[%clk 00:26:41]}
{[%emt 00:01:21]} 28. Qg3 {[%clk 00:49:32]} {[%emt 00:08:11]} Rg7 {[%clk
00:24:56]} {[%emt 00:02:16]} 29. b4 {[%clk 00:39:03]} {[%emt 00:10:59]} axb3
{[%clk 00:24:40]} {[%emt 00:00:46]} 30. Qxb3 {[%clk 00:39:30]} {[%emt
00:00:02]} Rh7 {[%clk 00:23:48]} {[%emt 00:01:22]} 31. Kg2 {[%clk 00:39:20]}
{[%emt 00:00:40]} Qc8 {[%clk 00:23:43]} {[%emt 00:00:35]} 32. Qf3 {[%clk
00:39:00]} {[%emt 00:00:50]} Qe6 {[%clk 00:22:29]} {[%emt 00:01:44]} 33. Qb3
{[%clk 00:36:25]} {[%emt 00:03:05]} Qc8 {[%clk 00:22:34]} {[%emt 00:00:26]} 34.
a4 {[%clk 00:34:58]} {[%emt 00:01:57]} gxf4 {[%clk 00:19:20]} {[%emt 00:03:44]}
35. Bxf4 {[%clk 00:35:17]} {[%emt 00:00:11]} Ne5 {[%clk 00:19:39]} {[%emt
00:00:10]} 36. Bxe5 {[%clk 00:35:11]} {[%emt 00:00:36]} dxe5 {[%clk 00:20:02]}
{[%emt 00:00:08]} 37. Rf1 {[%clk 00:34:34]} {[%emt 00:01:07]} Be7 {[%clk
00:19:39]} {[%emt 00:00:53]} 38. Rf3 {[%clk 00:34:06]} {[%emt 00:00:57]} Rh5
{[%clk 00:16:01]} {[%emt 00:04:08]} 39. c5 {[%clk 00:28:42]} {[%emt 00:05:55]}
c6 {[%clk 00:10:58]} {[%emt 00:05:33]} 40. Rfg3 {[%clk 00:26:12]} {[%emt
00:03:00]} Rg5 {[%emt 00:00:39]} 41. Qf7 {[%clk 00:24:06]} {[%emt 00:02:32]}
Qf8 {[%clk 00:08:01]} {[%emt 00:03:22]} 42. Rh4+ {[%clk 00:23:47]} {[%emt
00:00:49]} 1-0

[Event "Goteborg Open 2024"]
[Site "Goteborgs Schackcentrum, Vegatan 20, Gothenburg, Sweden"]
[Date "2024.08.04"]
[Round "7.8"]
[White "Fransson, Lennart"]
[Black "Andersson, Stig"]
[Result "1-0"]
[TimeControl "15 minutes + 5 seconds per move from move one (Round 1 - 4) / 90 minutes + 30 seconds per move from move one (Round 5 - 8)"]
[WhiteFideId "1706756"]
[BlackFideId "1731971"]
[WhiteElo "1926"]
[BlackElo "1889"]

1. c4 {[%emt 00:04:00]} Nf6 {[%clk 01:25:52]} {[%emt 00:01:27]} 2. g3 {[%clk
01:31:01]} {[%emt 00:00:10]} c5 {[%clk 01:26:08]} {[%emt 00:00:15]} 3. Bg2
{[%clk 01:31:21]} {[%emt 00:00:08]} Nc6 {[%clk 01:26:27]} {[%emt 00:00:13]} 4.
Nc3 {[%clk 01:29:58]} {[%emt 00:01:51]} d6 {[%clk 01:25:43]} {[%emt 00:01:14]}
5. d3 {[%clk 01:26:29]} {[%emt 00:03:58]} g6 {[%clk 01:25:14]} {[%emt
00:01:01]} 6. Rb1 {[%clk 01:23:48]} {[%emt 00:03:10]} Bg7 {[%clk 01:25:15]}
{[%emt 00:00:29]} 7. a3 {[%clk 01:23:08]} {[%emt 00:01:11]} Ng4 {[%clk
01:22:49]} {[%emt 00:02:56]} 8. Bd2 {[%clk 01:22:57]} {[%emt 00:00:40]} O-O
{[%clk 01:21:54]} {[%emt 00:01:25]} 9. b4 {[%clk 01:19:19]} {[%emt 00:04:09]}
f5 {[%clk 01:20:10]} {[%emt 00:02:14]} 10. e3 {[%clk 01:17:02]} {[%emt
00:02:46]} Nge5 {[%clk 01:15:26]} {[%emt 00:05:15]} 11. Qc2 {[%clk 01:16:42]}
{[%emt 00:00:48]} e6 {[%clk 01:12:39]} {[%emt 00:03:18]} 12. Nge2 {[%clk
01:14:45]} {[%emt 00:02:27]} g5 {[%clk 01:11:36]} {[%emt 00:01:34]} 13. f4
{[%clk 01:11:40]} {[%emt 00:03:34]} Nf7 {[%clk 01:00:51]} {[%emt 00:11:16]} 14.
O-O {[%clk 01:10:19]} {[%emt 00:01:49]} g4 {[%clk 00:58:57]} {[%emt 00:02:26]}
15. Rfd1 {[%clk 01:06:47]} {[%emt 00:04:00]} Qe7 {[%clk 00:57:41]} {[%emt
00:01:47]} 16. Be1 {[%clk 01:04:40]} {[%emt 00:02:37]} Rb8 {[%clk 00:54:25]}
{[%emt 00:03:46]} 17. bxc5 {[%clk 01:03:06]} {[%emt 00:02:04]} dxc5 {[%clk
00:54:33]} {[%emt 00:00:23]} 18. Bxc6 {[%clk 01:03:18]} {[%emt 00:00:18]} Nd8
{[%clk 00:48:19]} {[%emt 00:06:43]} 19. Bg2 {[%clk 01:02:21]} {[%emt 00:01:27]}
Nc6 {[%clk 00:48:39]} {[%emt 00:00:11]} 20. Bxc6 {[%clk 01:02:28]} {[%emt
00:00:22]} 1-0